bitfinex/quotes_SOLUSD_20250803
["timestamp","ask_amount","ask_price","bid_price","bid_amount"]
[1754179404642,0.78665827,158.9,158.83,49.72]
[1754179404861,0.68,158.89,158.83,49.72]
[1754179405536,0.68,158.93,158.84,0.71]
[1754179405864,0.68,158.93,158.84,17.49468397]
[1754179406090,0.78646029,158.94,158.85,0.71]
[1754179406248,0.78636134,158.96,158.86,42.78468397]
[1754179406455,1.46626242,158.98,158.87,0.71]
[1754179406638,1.46626242,158.98,158.88,16.78468397]
[1754179406843,26.0,158.97,158.89,0.71]
[1754179407382,1.46611408,159.01,158.9,16.78468397]
[1754179407677,1.46611408,159.01,158.91,0.71]
[1754179407839,1.46611408,159.01,158.92,16.78468397]
[1754179408154,27.46611408,159.01,158.93,0.71]
[1754179408340,1.46611408,159.01,158.93,0.71]
[1754179408540,0.03,159.02,158.94,16.78468397]
[1754179408760,0.03,159.02,158.95,0.71]
[1754179408963,0.81606464,159.02,158.95,0.71]
[1754179409745,0.68,159.01,158.95,0.71]
[1754179409977,0.03,159.02,158.95,0.71]
[1754179410268,0.03,159.02,158.95,26.71]
[1754179410474,0.03,159.02,158.96,0.71]
[1754179410680,0.71,159.02,158.93,0.71]
[1754179410844,0.78611408,159.01,158.93,0.71]
[1754179411170,0.68,159.0,158.9,17.49468397]
[1754179411378,0.78621296,158.99,158.9,17.49468397]
[1754179411549,0.68,158.98,158.9,17.49468397]
[1754179411745,0.78631188,158.97,158.87,26.0]
[1754179411956,26.0,158.9,158.79,0.71]
[1754179412160,1.46670778,158.89,158.79,0.71]
[1754179412448,0.68,158.88,158.79,0.71]
[1754179412646,0.78680682,158.87,158.79,0.71]
[1754179413157,0.78670778,158.89,158.79,0.71]
[1754179413471,0.68,158.91,158.8,16.78468397]
[1754179413675,26.0,158.9,158.81,0.71]
[1754179414178,26.0,158.91,158.81,0.71]
[1754179414481,26.0,158.91,158.83,26.0]
[1754179414773,0.78650978,158.93,158.85,26.0]
[1754179414977,0.78650978,158.93,158.86,0.71]
[1754179415580,0.03,158.91,158.86,0.71]
[1754179417260,0.03,158.91,158.87,0.71]
[1754179417680,0.03,158.91,158.88,0.71]
[1754179418367,0.03,158.91,158.89,0.71]
[1754179418755,0.03,158.91,158.9,0.71]
[1754179423785,0.03,158.91,158.86,0.71]
[1754179423977,0.03,158.91,158.87,0.71]
[1754179424378,0.03,158.91,158.88,0.71]
[1754179424765,0.03,158.91,158.9,16.78468397]
[1754179425164,0.68,159.01,158.9,17.49468397]
[1754179425399,0.81606464,159.02,158.92,16.78468397]
[1754179425586,26.81606464,159.02,158.92,16.78468397]
[1754179425787,0.68,159.01,158.93,0.71]
[1754179427491,0.03,159.02,158.94,16.78468397]
[1754179427675,0.03,159.02,158.95,0.71]
[1754179430399,0.03,159.02,158.97,26.0]
[1754179430584,0.03,159.02,158.98,0.71]
[1754179431197,0.03,159.02,158.99,0.71]
[1754179431774,0.03,159.02,159.0,0.71]
[1754179434011,0.03,159.02,159.01,0.71]
[1754179438378,0.03,159.02,159.01,17.49468397]
[1754179438689,0.03,159.02,159.01,92.57932726]
[1754179440619,0.03,159.02,159.01,66.57932726]
[1754179442508,0.03,159.02,159.01,82.8682399]
[1754179442707,0.03,159.05,159.04,52.78468397]
[1754179442910,0.67,159.18,159.08,16.78468397]
[1754179443113,0.2,159.22,159.09,0.44364007]
[1754179443114,0.67,159.16,159.09,0.44364007]
[1754179443410,0.67,159.16,159.09,74.52]
[1754179443615,0.2,159.22,159.1,17.22829616]
[1754179443795,0.67,159.18,159.13,26.0]
[1754179444116,0.67,159.18,159.13,74.58]
[1754179444291,0.87,159.17,159.13,74.58]
[1754179444694,0.2,159.17,159.13,75.28]
[1754179444989,0.67,159.16,159.13,74.58]
[1754179445295,0.2,159.17,159.13,74.58]
[1754179445493,0.87,159.17,159.13,74.58]
[1754179445691,0.2,159.17,159.14,0.7]
[1754179445887,0.2,159.17,159.15,0.7]
[1754179446111,0.2,159.17,159.14,16.78468397]
[1754179446112,0.2,159.17,159.16,43.92788097]
[1754179446824,0.2,159.17,159.16,26.443197]
[1754179447190,0.2,159.17,159.16,27.143197]
[1754179447388,0.2,159.17,159.16,43.92788097]
[1754179447591,0.2,159.17,159.16,48.5143934]
[1754179448609,0.2,159.17,159.16,47.3711964]
[1754179449231,0.2,159.17,159.16,26.0]
[1754179449522,0.2,159.17,159.16,92.42788097]
[1754179449827,0.2,159.17,159.16,97.00574269]
[1754179450190,0.2,159.17,159.16,74.5]
[1754179451011,0.87,159.17,159.16,74.5]
[1754179451399,0.87,159.17,159.16,48.5]
[1754179452302,0.2,159.17,159.16,48.5]
[1754179452724,0.2,159.17,159.16,49.2]
[1754179453308,0.2,159.17,159.16,48.5]
[1754179453495,0.2,159.17,159.16,91.98468397]
[1754179453699,0.2,159.17,159.16,91.28468397]
[1754179453914,0.2,159.17,159.16,91.98468397]
[1754179454497,0.2,159.17,159.16,48.5]
[1754179455703,0.87,159.17,159.16,48.5]
[1754179456118,0.2,159.17,159.16,48.5]
[1754179457097,0.2,159.17,159.16,65.98468397]
[1754179460848,0.2,159.17,159.16,69.09804257]
[1754179461339,0.2,159.17,159.16,73.66589724]
[1754179461543,0.2,159.17,159.16,65.28468397]
[1754179462720,0.87,159.17,159.16,65.28468397]
[1754179463144,0.87,159.17,159.16,48.5]
[1754179464141,0.87,159.17,159.16,26.0]
[1754179464347,0.87,159.17,159.16,74.2]
[1754179464644,0.87,159.17,159.16,48.2]
[1754179466446,0.2,159.17,159.16,48.2]
[1754179467120,0.2,159.17,159.16,65.68468397]
[1754179467442,0.2,159.17,159.16,64.98468397]
[1754179467620,0.2,159.17,159.16,90.98468397]
[1754179467821,0.87,159.17,159.16,48.1]
[1754179468641,0.2,159.17,159.16,48.1]
[1754179472228,0.2,159.17,159.16,52.69070446]
[1754179472432,0.2,159.17,159.16,52.69086114]
[1754179472745,0.2,159.17,159.16,52.69048511]
[1754179473946,0.2,159.17,159.16,48.1]
[1754179474150,0.2,159.17,159.16,52.69210145]
[1754179475453,0.89,159.17,159.16,52.69210145]
[1754179475832,0.2,159.17,159.16,52.69210145]
[1754179478458,0.2,159.17,159.16,52.70684749]
[1754179478654,0.2,159.17,159.16,30.60684749]
[1754179478962,0.89,159.17,159.16,78.36684749]
[1754179479157,0.2,159.17,159.16,78.36684749]
[1754179481349,0.89,159.17,159.16,78.36684749]
[1754179481683,0.89,159.17,159.16,52.28684749]
[1754179482845,0.89,159.17,159.16,4.62977533]
[1754179483045,5.89149887,159.17,159.14,47.64]
[1754179483254,0.69,159.16,159.15,4.63756939]
[1754179484246,4.91210224,159.16,159.15,4.63756939]
[1754179484776,4.91210224,159.16,159.09,4.64546353]
[1754179484963,26.0,159.14,159.08,0.06]
[1754179485142,5.00762351,159.13,159.08,0.06]
[1754179485352,4.22210224,159.12,159.08,0.06]
[1754179485654,5.00772225,159.11,159.08,0.06]
[1754179485834,4.22616974,159.1,159.08,0.06]
[1754179486038,0.78562001,159.11,159.08,0.06]
[1754179486234,0.69,159.1,159.08,0.06]
[1754179486964,0.69,159.09,159.08,0.06]
[1754179487172,0.69,159.11,159.08,0.06]
[1754179487364,1.47562001,159.11,159.08,0.06]
[1754179487565,0.69,159.1,159.08,0.06]
[1754179487756,0.69,159.11,159.08,0.06]
[1754179488959,5.00987162,159.13,159.08,0.06]
[1754179489165,0.69,159.13,159.08,0.06]
[1754179489468,0.69,159.12,159.08,0.06]
[1754179489655,4.22435035,159.14,159.08,0.74]
[1754179489850,5.6997729,159.15,159.08,26.74]
[1754179490055,0.69,159.15,159.09,0.68]
[1754179490258,0.69,159.15,159.1,73.52]
[1754179490660,0.69,159.15,159.1,74.2]
[1754179490872,0.69,159.14,159.1,74.2]
[1754179491372,0.7853732,159.16,159.1,74.2]
[1754179491373,0.69,159.16,159.1,74.2]
[1754179491976,0.2,159.17,159.11,0.68]
[1754179492178,0.89,159.17,159.11,0.68]
[1754179492774,0.89,159.17,159.13,26.0]
[1754179492970,0.2,159.17,159.14,0.68]
[1754179495287,0.2,159.17,159.13,73.48]
[1754179495288,0.69,159.16,159.13,73.48]
[1754179495462,0.69,159.16,159.13,47.48]
[1754179496078,0.69,159.15,159.13,47.48]
[1754179496385,0.2,159.17,159.13,47.48]
[1754179496563,1.67532386,159.17,159.13,47.48]
[1754179496759,0.69,159.16,159.13,47.48]
[1754179497988,0.2,159.17,159.14,0.68]
[1754179498288,0.2,159.17,159.16,26.0]
[1754179498484,0.2,159.17,159.16,26.68]
[1754179498661,0.2,159.17,159.16,31.31800639]
[1754179499071,0.2,159.17,159.16,78.67800639]
[1754179499987,0.2,159.17,159.16,74.04]
[1754179503163,0.2,159.17,159.16,90.82468397]
[1754179506064,0.2,159.17,159.16,74.04]
[1754179506269,0.2,159.17,159.16,73.36]
[1754179506800,0.2,159.17,159.16,74.06]
[1754179507204,0.2,159.17,159.16,90.84468397]
[1754179507999,0.03,159.19,159.16,238.58784555]
[1754179508201,0.2,159.22,159.21,42.78468397]
[1754179508389,0.2,159.22,159.21,89.94468397]
[1754179508573,0.2,159.22,159.21,90.64468397]
[1754179509385,0.2,159.22,159.21,73.16]
[1754179509585,0.87,159.22,159.21,26.0]
[1754179509804,0.2,159.22,159.21,73.14]
[1754179509981,0.2,159.22,159.21,76.357703]
[1754179510177,0.2,159.22,159.21,73.16]
[1754179510911,0.87,159.22,159.21,47.16]
[1754179511881,0.2,159.22,159.21,47.16]
[1754179512080,0.87,159.22,159.21,47.16]
[1754179512808,0.87,159.22,159.14,0.7]
[1754179512988,0.67,159.21,159.15,47.12]
[1754179513319,0.78517587,159.2,159.15,47.12]
[1754179513521,0.67,159.19,159.15,47.12]
[1754179513812,0.67,159.19,159.15,73.12]
[1754179514188,0.67,159.19,159.15,73.82]
[1754179514397,0.67,159.21,159.15,73.82]
[1754179517489,0.78517587,159.2,159.15,73.12]
[1754179517797,0.67,159.19,159.15,0.06]
[1754179517996,0.78527453,159.18,159.15,0.06]
[1754179518395,0.67,159.17,159.15,0.06]
[1754179518609,0.7853732,159.16,159.15,0.06]
[1754179518982,1.4553732,159.16,159.15,0.06]
[1754179520682,0.67,159.19,159.15,0.06]
[1754179520894,1.45527453,159.18,159.15,0.06]
[1754179521098,0.78517587,159.2,159.15,0.06]
[1754179521302,1.45517587,159.2,159.15,0.76]
[1754179521608,0.67,159.19,159.16,47.02]
[1754179522404,0.67,159.18,159.16,47.02]
[1754179522604,0.67,159.17,159.16,47.02]
[1754179523005,0.67,159.17,159.15,0.06]
[1754179523224,5.02724434,159.21,159.15,0.06]
[1754179523586,1.48512656,159.21,159.15,0.06]
[1754179523800,4.00473156,159.21,159.15,0.06]
[1754179524609,1.48512656,159.21,159.15,0.06]
[1754179526509,1.48512656,159.21,159.17,26.0]
[1754179526829,0.03,159.21,159.18,47.66]
[1754179526983,0.03,159.21,159.15,0.06]
[1754179526984,0.7,159.21,159.15,0.06]
[1754179527186,1.48512656,159.21,159.15,0.06]
[1754179527490,0.67,159.2,159.15,0.06]
[1754179527691,0.7852252,159.19,159.15,0.06]
[1754179528113,1.4552252,159.19,159.15,0.06]
[1754179528418,0.67,159.19,159.15,0.06]
[1754179528608,0.67,159.19,159.15,0.76]
[1754179528983,0.81512656,159.21,159.15,0.06]
[1754179529304,0.81512656,159.21,159.16,0.7]
[1754179529489,0.03,159.21,159.16,0.7]
[1754179529689,0.67,159.2,159.16,0.7]
[1754179529885,0.03,159.21,159.16,0.7]
[1754179530110,0.7,159.21,159.16,0.7]
[1754179530310,0.7,159.21,159.15,0.06]
[1754179531020,0.7,159.21,159.15,0.76]
[1754179531719,0.7,159.21,159.17,26.0]
[1754179531892,0.03,159.21,159.18,47.56]
[1754179532402,0.03,159.21,159.19,0.68]
[1754179533416,0.03,159.21,159.2,26.68]
[1754179534226,0.03,159.21,159.2,26.0]
[1754179534406,0.69,159.21,159.18,46.88]
[1754179534722,0.78517587,159.2,159.15,0.06]
[1754179535426,0.66,159.19,159.15,0.06]
[1754179536133,1.44527453,159.18,159.15,0.06]
[1754179536432,0.66,159.17,159.15,0.06]
[1754179536807,0.7853732,159.16,159.15,0.06]
[1754179537112,1.4453732,159.16,159.15,0.06]
[1754179539205,0.66,159.16,159.15,0.06]
[1754179539721,1.4452252,159.19,159.15,0.06]
[1754179539905,0.66,159.18,159.15,0.06]
[1754179540420,0.78532386,159.17,159.15,0.06]
[1754179540617,1.44517587,159.2,159.15,0.06]
[1754179541205,1.44517587,159.2,159.15,0.74]
[1754179541729,0.66,159.19,159.15,0.74]
[1754179542636,0.66,159.19,159.15,0.06]
[1754179543009,0.66,159.18,159.15,0.06]
[1754179544856,4.2520028,159.21,159.15,0.06]
[1754179544857,1.44532386,159.17,159.15,0.06]
[1754179545215,0.66,159.16,159.15,0.06]
[1754179546425,18.23005717,159.16,159.15,0.06]
[1754179546624,1.4453732,159.16,159.15,0.06]
[1754179546924,0.66,159.16,159.15,0.06]
[1754179548599,17.44468397,159.16,159.15,0.06]
[1754179548805,21.66523634,159.16,159.15,0.06]
[1754179549124,22.45060954,159.16,159.15,0.06]
[1754179549901,21.66523634,159.16,159.15,0.06]
[1754179554226,16.78468397,159.16,159.15,0.06]
[1754179554418,21.00438712,159.16,159.15,0.06]
[1754179554728,21.66438712,159.16,159.15,0.06]
[1754179554941,21.00438712,159.16,159.15,0.06]
[1754179555240,21.66438712,159.16,159.15,0.06]
[1754179557350,22.44976032,159.16,159.15,0.06]
[1754179558927,48.44976032,159.16,159.15,0.06]
[1754179560232,47.78976032,159.16,159.15,0.74]
[1754179560434,0.81512656,159.21,159.15,0.74]
[1754179560824,0.03,159.19,159.15,0.74]
[1754179561052,1.4952252,159.19,159.15,0.74]
[1754179561226,0.8152252,159.19,159.16,0.67]
[1754179561637,0.8152252,159.19,159.17,0.67]
[1754179561946,16.78468397,159.17,159.15,0.06]
[1754179562131,0.78527453,159.18,159.15,0.73]
[1754179562335,0.78527453,159.18,159.15,0.06]
[1754179562336,17.46468397,159.17,159.15,0.06]
[1754179562626,1.4653732,159.16,159.15,0.06]
[1754179563145,0.7853732,159.16,159.15,0.06]
[1754179563552,0.7853732,159.16,159.15,0.73]
[1754179563553,5.0079086,159.16,159.15,0.73]
[1754179563739,1.4653732,159.16,159.15,0.06]
[1754179564381,0.7853732,159.16,159.15,0.06]
[1754179564531,0.7853732,159.16,159.15,0.73]
[1754179565045,0.78532386,159.17,159.15,0.73]
[1754179565833,0.78532386,159.17,159.16,0.67]
[1754179566336,0.78527453,159.18,159.16,0.67]
[1754179566538,5.03765953,159.19,159.17,0.67]
[1754179566730,5.0368049,159.19,159.17,0.67]
[1754179567371,5.0368049,159.19,159.15,0.06]
[1754179567663,5.0368049,159.19,159.18,0.67]
[1754179567854,5.0368049,159.19,159.16,0.67]
[1754179568169,4.2515797,159.19,159.17,0.67]
[1754179568343,0.03,159.19,159.18,0.67]
[1754179570734,0.03,159.19,159.15,26.73]
[1754179570934,0.68,159.18,159.15,0.06]
[1754179571254,0.78532386,159.17,159.15,0.06]
[1754179571659,1.46532386,159.17,159.15,0.06]
[1754179571833,0.68,159.16,159.15,0.06]
[1754179572137,47.68774688,159.16,159.15,0.06]
[1754179572662,69.45245413,159.16,159.15,0.06]
[1754179572957,69.45245413,159.16,159.13,0.06]
[1754179572958,34.5980118,159.15,159.13,0.06]
[1754179573132,27.07433536,159.14,159.13,0.06]
[1754179573457,35.56766319,159.14,159.13,0.06]
[1754179573659,26.06348371,159.14,159.13,0.06]
[1754179574050,30.28598918,159.14,159.13,0.06]
[1754179574261,62.16045714,159.14,159.13,0.06]
[1754179574433,68.44423243,159.14,159.13,0.06]
[1754179574634,26.0,159.09,159.08,0.06]
[1754179574938,26.0,159.09,159.0,0.06]
[1754179574939,26.78468397,159.08,159.0,0.06]
[1754179575144,42.78468397,159.03,159.0,0.06]
[1754179575447,47.34606464,159.02,159.0,0.06]
[1754179575764,48.02606464,159.02,159.0,0.06]
[1754179576148,17.46468397,159.01,159.0,0.06]
[1754179576353,21.67966493,159.01,159.0,0.06]
[1754179576766,17.46468397,159.01,159.0,0.06]
[1754179576961,43.46468397,159.01,159.0,0.06]
[1754179577269,17.46468397,159.01,159.0,0.06]
[1754179577567,39.4917353,159.01,159.0,0.06]
[1754179577875,47.91005253,159.01,159.0,0.06]
[1754179578043,53.18999793,159.01,159.0,0.06]
[1754179578569,47.91005253,159.01,159.0,0.06]
[1754179578743,53.18999793,159.01,159.0,0.06]
[1754179578945,47.91005253,159.01,159.0,0.06]
[1754179579151,84.53005253,159.01,159.0,0.06]
[1754179579692,46.99840747,159.01,159.0,0.06]
[1754179579873,94.38452155,159.01,159.0,0.06]
[1754179580250,0.78611408,159.01,159.0,0.06]
[1754179580478,46.6,159.02,159.0,0.06]
[1754179580652,0.78611408,159.01,159.0,0.06]
[1754179580846,17.57079805,159.01,159.0,0.06]
[1754179582681,17.57079805,159.01,159.0,0.73]
[1754179583157,17.57079805,159.01,159.0,0.06]
[1754179584663,17.57079805,159.01,159.0,0.73]
[1754179584664,0.78611408,159.01,159.0,0.73]
[1754179584864,63.36468397,159.05,159.0,0.73]
[1754179585083,0.78596579,159.04,159.01,0.67]
[1754179585268,0.78596579,159.04,159.02,0.67]
[1754179585583,0.78596579,159.04,159.03,0.67]
[1754179585783,17.57055093,159.06,159.03,0.67]
[1754179586383,17.57055093,159.06,159.04,0.67]
[1754179587380,0.78586696,159.06,159.04,0.67]
[1754179587587,0.78586696,159.06,159.05,0.67]
[1754179588194,0.03,159.09,159.05,0.67]
[1754179589576,0.81571877,159.09,159.05,0.67]
[1754179589776,0.03,159.09,159.05,0.67]
[1754179596363,0.03,159.09,159.06,0.72]
[1754179597643,0.03,159.09,159.04,0.72]
[1754179598038,0.03,159.09,159.05,0.72]
[1754179602024,0.03,159.09,159.08,42.78468397]
[1754179602351,0.03,159.1,159.09,16.78468397]
[1754179602554,0.03,159.19,159.12,26.0]
[1754179602853,0.03,159.19,159.16,26.0]
[1754179603250,0.03,159.19,159.17,0.72]
[1754179603851,0.03,159.19,159.13,16.78468397]
[1754179603852,0.03,159.19,159.14,46.54]
[1754179604152,0.03,159.19,159.17,26.72]
[1754179604938,0.03,159.19,159.14,47.26]
[1754179605149,0.03,159.19,159.14,73.26]
[1754179605453,0.67,159.18,159.14,72.54]
[1754179605656,0.03,159.19,159.14,73.26]
[1754179605830,0.67,159.18,159.06,16.78468397]
[1754179606025,0.78532386,159.17,159.11,0.72]
[1754179606468,0.8152252,159.19,159.11,0.72]
[1754179607558,0.03,159.19,159.12,26.0]
[1754179607760,0.03,159.19,159.13,0.72]
[1754179608949,0.8152252,159.19,159.13,0.72]
[1754179610565,0.78527453,159.18,159.13,0.72]
[1754179610834,1.45527453,159.18,159.13,0.72]
[1754179611459,0.78527453,159.18,159.14,0.72]
[1754179611776,0.03,159.19,159.12,26.0]
[1754179611777,0.03,159.19,159.15,0.72]
[1754179612157,0.03,159.19,159.16,0.72]
[1754179612565,0.03,159.19,159.12,26.0]
[1754179612867,0.03,159.19,159.17,0.72]
[1754179613893,0.03,159.19,159.18,0.72]
[1754179614437,0.03,159.19,159.16,0.72]
[1754179614875,0.03,159.19,159.17,0.72]
[1754179615356,0.03,159.19,159.18,0.72]
[1754179617471,0.03,159.19,159.16,26.0]
[1754179617649,0.03,159.19,159.18,0.72]
[1754179620683,0.03,159.19,159.17,46.48]
[1754179620849,0.03,159.19,159.17,47.2]
[1754179621383,0.03,159.19,159.17,47.14]
[1754179622066,0.03,159.19,159.18,0.66]
[1754179623161,0.03,159.21,159.2,26.0]
[1754179623568,0.2,159.22,159.2,43.44468397]
[1754179623772,0.2,159.22,159.21,63.92468397]
[1754179626560,0.2,159.22,159.21,17.44468397]
[1754179626782,0.2,159.22,159.21,63.92468397]
[1754179627285,0.2,159.22,159.21,64.36735227]
[1754179628669,0.2,159.22,159.21,74.36735227]
[1754179628854,0.2,159.22,159.21,80.64836476]
[1754179629873,0.03,159.25,159.24,52.78468397]
[1754179630088,0.03,159.25,159.24,63.68705644]
[1754179630285,0.03,159.25,159.24,63.90468397]
[1754179630876,0.03,159.25,159.24,63.24468397]
[1754179631474,0.03,159.25,159.24,63.90468397]
[1754179631871,0.03,159.25,159.24,46.46]
[1754179632375,0.71,159.25,159.24,46.46]
[1754179632793,0.03,159.25,159.24,46.46]
[1754179633111,0.71,159.25,159.24,46.46]
[1754179633707,0.03,159.25,159.24,46.46]
[1754179633880,0.03,159.25,159.24,47.12]
[1754179634078,0.03,159.25,159.24,46.46]
[1754179634490,0.03,159.25,159.24,63.88468397]
[1754179635807,0.03,159.25,159.24,64.32705644]
[1754179636399,0.03,159.25,159.24,74.32705644]
[1754179637997,0.03,159.25,159.24,17.88705644]
[1754179638201,0.71,159.25,159.18,0.06]
[1754179638575,0.71,159.25,159.19,46.78]
[1754179638774,0.78497864,159.24,159.19,46.78]
[1754179638976,0.68,159.23,159.19,46.78]
[1754179639905,0.68,159.22,159.19,46.78]
[1754179640102,0.68,159.21,159.19,46.78]
[1754179640491,0.81492935,159.25,159.19,46.78]
[1754179640492,0.68,159.24,159.19,46.78]
[1754179640806,0.68,159.23,159.19,72.78]
[1754179640983,0.03,159.25,159.19,72.78]
[1754179640984,0.68,159.22,159.19,72.78]
[1754179641190,0.68,159.22,159.19,46.78]
[1754179641693,0.68,159.22,159.18,0.06]
[1754179642174,0.78512656,159.21,159.18,0.06]
[1754179642579,0.68,159.2,159.18,0.06]
[1754179642780,0.7852252,159.19,159.18,0.06]
[1754179643280,1.4652252,159.19,159.18,0.06]
[1754179646927,44.24990917,159.19,159.18,0.06]
[1754179647093,48.45104936,159.19,159.18,0.06]
[1754179650333,44.24990917,159.19,159.18,0.06]
[1754179650691,1.4652252,159.19,159.18,0.06]
[1754179650919,0.68,159.23,159.18,0.06]
[1754179651216,1.44507725,159.22,159.18,0.06]
[1754179651721,0.66,159.21,159.18,0.06]
[1754179652015,0.78517587,159.2,159.18,0.06]
[1754179652916,0.66,159.21,159.18,0.06]
[1754179653111,0.78497864,159.24,159.19,0.67]
[1754179653311,0.81492935,159.25,159.2,0.67]
[1754179653511,0.81492935,159.25,159.21,0.67]
[1754179653839,0.81492935,159.25,159.18,0.06]
[1754179654000,0.81492935,159.25,159.21,0.67]
[1754179654414,0.03,159.25,159.21,0.67]
[1754179654704,0.78497864,159.24,159.19,0.67]
[1754179654902,0.78497864,159.24,159.2,0.67]
[1754179655105,0.81492935,159.25,159.2,0.67]
[1754179655306,0.81492935,159.25,159.21,0.67]
[1754179656024,0.03,159.25,159.21,0.67]
[1754179656233,0.78497864,159.24,159.18,0.73]
[1754179656401,0.78497864,159.24,159.19,0.67]
[1754179656594,0.78497864,159.24,159.2,0.67]
[1754179657001,0.03,159.25,159.21,0.67]
[1754179657437,0.03,159.25,159.22,0.67]
[1754179660226,0.03,159.25,159.22,26.0]
[1754179660404,0.03,159.25,159.22,26.67]
[1754179660899,0.03,159.25,159.22,0.67]
[1754179661517,0.03,159.25,159.23,0.67]
[1754179662741,0.03,159.25,159.24,0.67]
[1754179664508,0.03,159.25,159.21,0.67]
[1754179665509,0.03,159.25,159.2,26.0]
[1754179665708,0.03,159.25,159.22,0.67]
[1754179667710,0.03,159.25,159.23,17.22715504]
[1754179668206,0.03,159.25,159.24,0.67]
[1754179673242,0.03,159.25,159.24,17.45468397]
[1754179673940,0.03,159.25,159.24,0.67]
[1754179674535,0.03,159.25,159.23,46.46]
[1754179674916,0.03,159.25,159.23,47.13]
[1754179675342,0.03,159.25,159.24,0.67]
[1754179676548,0.03,159.25,159.23,46.46]
[1754179676850,0.03,159.25,159.23,72.46]
[1754179678518,0.03,159.25,159.22,46.44]
[1754179678519,0.66,159.24,159.22,46.44]
[1754179678719,0.03,159.25,159.22,46.44]
[1754179679324,0.69,159.25,159.22,46.44]
[1754179679521,0.03,159.25,159.22,47.11]
[1754179679919,0.03,159.25,159.22,46.44]
[1754179680245,0.03,159.25,159.22,47.11]
[1754179680625,0.03,159.25,159.23,0.67]
[1754179680819,0.69,159.25,159.22,46.44]
[1754179681241,0.78497864,159.24,159.19,0.06]
[1754179681532,0.78497864,159.24,159.19,46.5]
[1754179681725,0.68,159.23,159.19,46.5]
[1754179681926,0.68,159.22,159.19,0.06]
[1754179682132,1.46507725,159.22,159.19,0.06]
[1754179682636,0.68,159.21,159.19,0.06]
[1754179682822,0.78517587,159.2,159.18,0.06]
[1754179683037,16.78468397,159.19,159.05,0.06]
[1754179683356,42.78468397,159.16,159.06,46.44]
[1754179683564,16.78468397,159.14,159.05,0.06]
[1754179683862,1.46542255,159.15,159.05,0.06]
[1754179683863,16.78468397,159.1,159.05,0.06]
[1754179684076,1.46571877,159.09,159.05,0.06]
[1754179684544,0.68,159.08,159.05,0.06]
[1754179684744,0.78581756,159.07,159.05,0.06]
[1754179684954,1.46581756,159.07,159.05,0.06]
[1754179685140,0.78571877,159.09,159.05,0.06]
[1754179685335,0.68,159.1,159.05,0.77]